bitfinex/quotes_ETHUSD_20250626
["timestamp","ask_amount","ask_price","bid_price","bid_amount"]
[1750912871182,0.2016,2478.5,2478.0,0.2199376]
[1750912871478,0.27819,2478.5,2478.0,0.2199376]
[1750912871689,0.2016,2478.3,2478.0,0.2199376]
[1750912872155,0.7787,2478.2,2478.0,0.2199376]
[1750912872484,1.759,2478.1,2478.0,0.2199376]
[1750912877387,0.7787,2478.2,2478.0,0.2199376]
[1750912877582,1.758,2478.1,2478.0,0.2199376]
[1750912877790,11.758,2478.1,2478.0,0.2199376]
[1750912879167,10.0,2478.1,2478.0,0.2199376]
[1750912879619,11.758,2478.1,2478.0,0.2199376]
[1750912880597,0.7787,2478.2,2478.0,4.2554051]
[1750912880772,0.2016,2478.2,2478.0,4.25535203]
[1750912880970,0.2016,2478.2,2478.0,0.2199376]
[1750912881384,0.2016,2478.2,2478.0,4.25542394]
[1750912881900,0.2016,2478.2,2478.0,0.2199376]
[1750912882593,11.47954,2478.2,2478.0,0.2199376]
[1750912882798,1.47954,2478.2,2478.0,0.2199376]
[1750912883001,10.7671,2478.1,2478.0,0.2199376]
[1750912883175,14.80244966,2478.1,2478.0,0.2199376]
[1750912884303,15.35244966,2478.1,2478.0,0.2199376]
[1750912884504,18.96447826,2478.1,2478.0,0.2199376]
[1750912885005,29.59910328,2478.1,2478.0,0.2199376]
[1750912885822,36.27110328,2478.1,2478.0,0.2199376]
[1750912886021,35.31747826,2478.1,2478.0,0.2199376]
[1750912886226,36.2725934,2478.1,2478.0,0.2199376]
[1750912886395,38.0305934,2478.1,2478.0,0.2199376]
[1750912886715,22.4901286,2478.1,2478.0,0.2199376]
[1750912887015,32.4901286,2478.1,2478.0,0.2199376]
[1750912887418,44.50646813,2478.1,2478.0,0.2199376]
[1750912887713,45.05646813,2478.1,2478.0,0.2199376]
[1750912887890,25.01642901,2478.1,2478.0,0.2199376]
[1750912888095,33.44642901,2478.1,2478.0,0.2199376]
[1750912889583,33.44642901,2478.1,2477.2,0.771]
[1750912889584,10.795,2477.9,2476.6,0.8196]
[1750912889808,10.795,2477.9,2477.2,4.03670779]
[1750912889809,10.0,2477.7,2477.2,4.03670779]
[1750912890012,1.758,2477.6,2477.3,4.85624433]
[1750912890206,1.758,2477.6,2477.3,0.8196]
[1750912890620,0.795,2477.9,2477.3,0.8196]
[1750912890817,10.0,2477.7,2477.3,0.8196]
[1750912891514,11.758,2477.7,2477.3,0.8196]
[1750912892017,1.758,2477.8,2477.4,4.03637399]
[1750912892195,1.758,2477.8,2477.3,4.85614298]
[1750912892399,13.2930286,2478.1,2477.7,4.03596141]
[1750912892400,9.681,2478.1,2477.7,4.03596141]
[1750912892607,2.553,2478.4,2477.7,4.03594068]
[1750912892819,4.143,2478.4,2477.8,4.85543271]
[1750912893120,0.2016,2478.3,2477.9,0.2016]
[1750912893293,1.59,2478.4,2478.1,0.2016]
[1750912893692,1.94496,2478.4,2478.0,0.8196]
[1750912893922,0.2016,2478.2,2477.8,0.996]
[1750912895424,1.59,2478.2,2477.6,0.757]
[1750912895635,0.2016,2478.1,2477.6,0.9586]
[1750912895930,0.2016,2477.7,2477.3,0.2016]
[1750912900929,1.7916,2477.7,2477.3,0.2016]
[1750912901421,1.758,2477.6,2477.3,0.2016]
[1750912902152,3.5496,2477.7,2477.3,0.2016]
[1750912902298,1.7916,2477.7,2477.3,4.23820455]
[1750912902498,3.5496,2477.7,2477.3,4.23820455]
[1750912902827,3.5496,2477.7,2477.4,4.03638303]
[1750912902828,1.7916,2477.7,2477.4,4.03638303]
[1750912903125,1.59,2477.7,2477.5,4.03628659]
[1750912903533,1.59,2477.7,2477.4,0.2016]
[1750912903534,1.59,2477.7,2477.6,4.03616402]
[1750912903734,1.59,2477.7,2477.6,4.86806402]
[1750912904937,1.59,2477.9,2477.8,4.03583824]
[1750912905106,3.348,2478.1,2477.8,4.03583824]
[1750912905933,1.59,2478.1,2477.9,4.03558899]
[1750912906811,1.59,2478.2,2477.9,4.03558899]
[1750912907012,1.7916,2478.3,2477.8,4.23742916]
[1750912907212,1.7916,2478.3,2478.0,4.03539588]
[1750912907738,1.59,2478.3,2478.2,4.03518682]
[1750912908309,1.59,2478.3,2478.1,4.0352721]
[1750912908529,1.59,2478.3,2478.2,4.03518682]
[1750912908938,1.59,2478.3,2478.0,0.9918]
[1750912909332,1.59,2478.3,2478.1,4.03526726]
[1750912911445,1.7916,2478.5,2478.2,4.03518682]
[1750912911634,3.347,2478.5,2478.3,4.03502078]
[1750912911948,3.347,2478.5,2478.2,0.2016]
[1750912912148,3.347,2478.5,2478.2,4.23678132]
[1750912912736,3.347,2478.5,2478.2,0.2016]
[1750912914133,3.347,2478.5,2478.2,4.2367752]
[1750912914861,3.347,2478.5,2478.2,0.2016]
[1750912915344,4.50236,2478.5,2478.2,0.2016]
[1750912916169,4.50236,2478.5,2478.0,4.82563074]
[1750912916365,4.70396,2478.5,2478.0,0.9918]
[1750912916571,4.70396,2478.5,2478.0,0.2016]
[1750912916969,0.2016,2478.2,2477.8,4.9933943]
[1750912917340,0.2016,2478.2,2477.9,4.03564236]
[1750912917967,0.2016,2478.2,2477.8,4.23736279]
[1750912918173,1.59,2478.1,2477.8,0.2016]
[1750912918553,2.3591,2478.1,2477.8,0.2016]
[1750912918772,2.3591,2478.1,2477.6,4.79208642]
[1750912919076,2.5607,2478.1,2477.6,4.99368642]
[1750912919280,2.5607,2478.1,2477.6,4.23768642]
[1750912919446,2.5607,2478.1,2477.6,0.2016]
[1750912919647,2.5607,2478.1,2477.6,4.237738]
[1750912920075,2.5607,2478.1,2477.7,4.03597703]
[1750912921258,2.5607,2478.1,2477.6,4.23769438]
[1750912923516,2.81677,2478.1,2477.6,4.23769438]
[1750912924305,2.81677,2478.1,2477.6,0.2016]
[1750912924776,2.81677,2478.1,2477.6,4.2376026]
[1750912924777,4.57377,2478.1,2477.6,4.2376026]
[1750912925517,0.7786,2478.0,2477.5,4.03624408]
[1750912925717,0.2016,2477.8,2477.5,4.03624408]
[1750912926926,0.2016,2477.8,2477.4,4.2380064]
[1750912927520,0.2016,2477.8,2477.4,0.2016]
[1750912927721,0.7528,2477.6,2477.3,4.03665167]
[1750912927889,1.59,2477.5,2477.3,4.03665167]
[1750912928679,1.59,2477.5,2477.4,4.03648986]
[1750912929376,1.59,2477.5,2477.3,4.03654759]
[1750912931639,1.59,2477.5,2477.4,4.03648986]
[1750912932722,1.59,2477.5,2477.3,4.03656857]
[1750912933290,1.59,2477.6,2476.9,4.03714781]
[1750912933494,0.2016,2477.1,2476.7,0.2016]
[1750912933714,1.59,2477.0,2476.8,4.03736548]
[1750912935696,0.7506,2476.9,2476.4,0.7783]
[1750912935892,0.7506,2476.9,2476.6,0.2016]
[1750912936096,0.9522,2476.9,2476.4,7.6479]
[1750912936520,0.9522,2476.9,2476.5,4.03791141]
[1750912936922,0.9522,2476.9,2476.6,4.03776583]
[1750912937827,1.59,2477.0,2476.8,4.0373675]
[1750912938852,1.59,2477.0,2476.7,4.23914917]
[1750912939422,2.02571,2477.0,2476.7,0.2016]
[1750912939740,0.2016,2476.9,2476.5,6.668]
[1750912940242,0.2016,2476.9,2476.5,10.7058582]
[1750912940407,0.2016,2476.9,2476.5,6.668]
[1750912940608,0.2016,2476.9,2476.4,10.90766734]
[1750912941145,0.2016,2476.9,2476.5,4.03794562]
[1750912942435,0.2016,2476.9,2476.6,4.03778547]
[1750912942756,0.7938,2476.8,2476.4,6.8696]
[1750912943524,0.7938,2476.8,2476.0,6.41522127]
[1750912943525,1.59,2476.7,2476.0,6.41522127]
[1750912943742,0.8009,2476.5,2476.2,0.2016]
[1750912944431,0.2016,2476.4,2476.0,12.50917829]
[1750912944837,0.2016,2476.4,2476.0,8.4704828]
[1750912945052,0.2016,2476.4,2476.0,12.50916815]
[1750912946554,0.2016,2476.4,2476.0,8.4704828]
[1750912946755,1.7916,2476.7,2476.4,4.03811985]
[1750912947113,11.7916,2476.7,2476.5,4.03790367]
[1750912947319,1.7916,2476.7,2476.5,4.03790367]
[1750912947823,1.7916,2476.7,2476.5,4.03795679]
[1750912948022,1.7916,2476.7,2476.6,4.03779374]
[1750912948368,1.59,2476.7,2476.6,15.06959374]
[1750912948658,1.59,2476.7,2476.6,15.61959374]
[1750912948958,1.59,2477.4,2477.3,4.0366528]
[1750912949118,1.59,2477.7,2477.4,4.03648986]
[1750912949456,1.59,2477.7,2477.5,4.03624978]
[1750912949638,1.59,2477.7,2477.0,4.03699304]
[1750912949840,0.2016,2477.5,2477.2,6.668]
[1750912950552,0.2016,2477.5,2477.2,10.70479744]
[1750912951145,0.8311,2477.4,2477.2,6.668]
[1750912951754,1.59,2477.3,2476.9,0.2016]
[1750912951958,0.7545,2477.1,2476.6,4.0376671]
[1750912952257,1.59,2477.0,2476.4,6.667]
[1750912952423,1.59,2477.0,2476.4,10.70506937]
[1750912952850,1.59,2477.0,2476.4,6.667]
[1750912953056,1.59,2477.0,2476.5,4.03786559]
[1750912953354,1.850677,2477.0,2476.4,6.667]
[1750912953726,2.5223,2476.9,2476.2,4.03837978]
[1750912954355,2.5223,2476.9,2476.1,6.667]
[1750912954567,1.59,2476.8,2476.4,4.03802715]
[1750912954972,1.59,2476.8,2476.3,4.03820516]
[1750912956172,1.59,2476.8,2476.4,4.0380956]
[1750912956974,1.59,2476.8,2476.3,4.03821553]
[1750912957554,1.3097,2476.6,2474.5,0.8318]
[1750912957843,0.7597,2476.1,2474.7,6.667]
[1750912958065,10.0,2475.9,2475.2,4.040041]
[1750912958232,10.0,2475.9,2475.1,4.04017691]
[1750912958431,10.0,2475.9,2475.0,4.04035353]
[1750912958772,0.8323,2475.8,2475.0,4.04035353]
[1750912958972,1.08323,2475.7,2474.5,0.8318]
[1750912959147,1.08323,2475.7,2474.8,10.70763607]
[1750912959567,1.08323,2475.7,2475.0,4.04037585]
[1750912959765,1.08323,2475.7,2474.9,4.04049195]
[1750912960139,1.08323,2475.7,2474.8,10.70763575]
[1750912960845,1.08323,2475.7,2474.9,4.04052034]
[1750912961041,1.08323,2475.7,2475.0,4.0402421]
[1750912961248,0.8323,2475.8,2475.1,4.04017006]
[1750912961451,11.756,2475.7,2475.2,4.04005268]
[1750912961868,0.2016,2475.6,2475.2,0.2016]
[1750912962068,1.7916,2475.6,2475.2,0.2016]
[1750912963376,1.7916,2475.6,2475.2,4.24156606]
[1750912963674,1.7916,2475.6,2475.3,4.03989433]
[1750912963862,1.59,2475.6,2475.1,0.7692]
[1750912964059,1.59,2475.6,2475.5,0.4215376]
[1750912964243,1.59,2475.6,2475.5,4.46112556]
[1750912964446,1.59,2475.8,2475.5,0.4215376]
[1750912964653,0.35486,2475.8,2475.5,0.4215376]
[1750912966153,0.35486,2475.8,2475.5,0.2199376]
[1750912966477,0.2016,2475.7,2475.5,0.2199376]
[1750912967960,1.0236,2475.7,2475.5,0.2199376]
[1750912968779,1.59,2475.6,2475.5,0.2199376]
[1750912969167,1.866686,2475.6,2475.5,0.2199376]
[1750912972491,1.59,2475.6,2475.5,0.2199376]
[1750912977795,5.62942478,2475.6,2475.5,0.2199376]
[1750912977994,12.4156,2475.6,2475.5,0.2199376]
[1750912979594,11.59,2475.6,2475.5,0.2199376]
[1750912979761,1.7916,2475.6,2475.5,0.2199376]
[1750912980769,2.2246,2475.6,2475.5,0.2199376]
[1750912982462,1.7916,2475.6,2475.5,0.2199376]
[1750912989399,9.792,2475.6,2475.5,0.2199376]
[1750912989580,4.07952484,2475.6,2475.5,0.2199376]
[1750912989785,11.547,2475.6,2475.5,0.2199376]
[1750912991676,12.50452484,2475.6,2475.5,0.2199376]
[1750912991902,15.15890594,2475.6,2475.5,0.2199376]
[1750912993197,25.15890594,2475.6,2475.5,0.2199376]
[1750912994013,32.20615896,2475.6,2475.5,0.2199376]
[1750912994309,36.24558374,2475.6,2475.5,0.2199376]
[1750912999326,36.45595728,2475.6,2475.5,0.2199376]
[1750913000324,4.2443811,2475.6,2475.5,0.2199376]
[1750913000485,1.59,2475.6,2475.5,0.2199376]
[1750913001831,10.013,2475.6,2475.5,0.2199376]
[1750913003211,1.59,2475.6,2475.5,0.2199376]
[1750913003391,3.344,2475.6,2475.5,0.2199376]
[1750913005316,1.59,2475.6,2475.5,0.2199376]
[1750913005715,1.59,2475.6,2475.5,4.25952556]
[1750913006216,1.59,2475.6,2475.5,0.2199376]
[1750913006791,1.59,2475.6,2475.5,5.03782556]
[1750913008424,1.59,2475.8,2475.7,4.03926162]
[1750913008622,1.754,2476.1,2475.8,4.03909055]
[1750913009097,1.754,2476.2,2475.8,4.03909055]
[1750913009295,11.754,2476.2,2475.8,4.03909055]
[1750913009518,1.59,2476.1,2475.6,0.7901]
[1750913009917,1.59,2476.1,2476.0,4.86317221]
[1750913013335,1.7916,2476.5,2476.3,4.03824915]
[1750913013629,1.7916,2476.5,2476.4,4.03811985]
[1750913014227,1.7916,2476.5,2476.3,4.03824941]
[1750913014647,1.59,2476.5,2476.4,4.83631985]
[1750913015103,1.59,2476.5,2476.4,0.7982]
[1750913016534,1.59,2476.6,2476.5,4.03795679]
[1750913017102,1.59,2476.6,2476.4,4.83623883]
[1750913018638,1.59,2476.6,2476.5,4.03795679]
[1750913018823,1.59,2476.6,2476.5,5.05695679]
[1750913019220,1.7916,2477.1,2476.6,4.03779374]
[1750913019413,1.9556,2477.3,2477.0,4.85446445]
[1750913019607,0.2016,2477.3,2477.1,4.03685463]
[1750913019806,0.2016,2477.3,2477.0,4.85446445]
[1750913019807,1.59,2477.2,2477.0,4.85448882]
[1750913020241,1.59,2477.2,2477.0,0.8174]
[1750913020534,1.59,2477.2,2477.0,4.85452239]
[1750913021209,1.59,2477.2,2477.0,4.85447015]
[1750913021410,1.59,2477.2,2477.1,4.03697872]
[1750913021633,1.59,2477.2,2477.0,4.85446171]
[1750913022446,1.59,2477.2,2477.1,4.03697872]
[1750913023512,1.59,2477.2,2477.1,4.23857872]
[1750913024618,1.7916,2477.7,2477.5,4.03632694]
[1750913024814,1.7916,2477.7,2477.4,4.03641847]
[1750913025012,1.7916,2477.7,2477.4,4.23801847]
[1750913025214,1.7916,2477.7,2477.5,4.03632005]
[1750913025423,1.59,2477.7,2477.5,4.03625318]
[1750913025627,1.59,2477.7,2477.6,0.7917]
[1750913025815,1.59,2477.7,2477.6,4.82786402]
[1750913027019,1.59,2477.7,2477.6,5.02946402]
[1750913027727,1.59,2478.0,2477.8,4.03572171]
[1750913028132,1.59,2478.0,2477.7,4.03592292]
[1750913029049,1.59,2478.0,2477.8,4.03582405]
[1750913029217,1.59,2478.0,2477.6,0.9933]
[1750913029619,1.59,2478.0,2477.7,4.03591852]
[1750913029824,6.664,2478.7,2477.7,4.03591852]
[1750913029825,1.59,2477.9,2477.8,11.50613824]
[1750913031860,4.1602,2478.8,2477.8,7.4703]
[1750913032039,1.59,2478.7,2478.4,4.03481342]
[1750913032460,1.59,2478.7,2478.5,4.03462697]
[1750913032664,1.59,2478.7,2478.4,4.03473177]
[1750913033227,1.59,2478.7,2478.3,4.79364714]
[1750913033428,1.59,2478.7,2478.3,0.7587]
[1750913033741,1.59,2478.7,2478.0,4.03551251]
[1750913034062,1.59,2478.7,2478.3,4.82609016]
[1750913034260,1.59,2478.7,2478.6,4.03453562]
[1750913035572,1.59,2478.7,2478.3,0.7911]
[1750913035748,1.59,2478.7,2478.4,4.03474417]
[1750913036272,2.3651,2478.7,2478.1,4.82630301]
[1750913036969,1.59,2478.6,2478.0,4.03549033]
[1750913038637,1.751,2478.5,2477.8,6.661]
[1750913038966,1.59,2478.4,2477.9,4.03561543]
[1750913039185,1.59,2478.4,2477.8,6.661]
[1750913039479,1.59,2478.4,2477.8,10.69682159]
[1750913039760,0.2016,2478.2,2477.8,10.89840753]
[1750913039960,1.59,2478.1,2477.8,10.89840753]
[1750913040365,1.59,2478.1,2477.9,4.03566546]
[1750913040548,1.59,2478.1,2477.8,10.89839623]
[1750913040733,1.59,2478.1,2477.8,6.8626]
[1750913040933,2.4085,2478.1,2477.6,4.85629479]
[1750913041155,2.6101,2478.1,2477.6,5.05789479]
[1750913042390,1.59,2478.0,2477.5,10.69630771]
[1750913042554,0.2016,2477.9,2477.5,10.69630771]
[1750913043038,0.2016,2477.9,2477.6,4.03614521]
[1750913043855,0.2016,2477.9,2477.5,6.66]
[1750913043856,1.59,2478.0,2477.7,4.03591351]
[1750913044056,1.7916,2478.0,2477.8,4.03571438]
[1750913044261,1.59,2478.0,2477.9,4.03567537]
[1750913044459,1.59,2478.0,2477.9,4.23727537]
[1750913044760,1.59,2478.0,2477.9,10.89627537]
[1750913045764,0.8075,2478.1,2477.9,0.2016]
[1750913045956,1.0091,2478.1,2477.7,4.23752907]
[1750913046160,1.0091,2478.1,2477.8,4.0358354]
[1750913046360,0.2016,2478.1,2477.9,4.03566022]
[1750913046581,1.59,2478.2,2478.0,4.03551251]
[1750913046776,1.59,2478.2,2478.0,4.23711251]
[1750913047240,1.59,2478.2,2478.1,4.03534966]
[1750913047864,1.59,2478.2,2478.1,4.23694966]
[1750913048861,1.59,2478.5,2478.4,4.0348612]
[1750913049051,1.7916,2478.8,2478.6,4.03448721]
[1750913049941,1.7916,2478.8,2478.4,6.8606]
[1750913050144,1.7916,2478.8,2478.4,10.89536952]
[1750913050675,1.7916,2478.8,2478.5,4.03467765]
[1750913051355,1.7916,2478.8,2478.6,4.03447844]
[1750913051745,1.7916,2478.8,2478.7,4.03437285]
[1750913052254,1.59,2478.8,2478.7,4.03437285]
[1750913052455,1.59,2478.8,2478.6,4.23601943]
[1750913052769,0.8046,2478.7,2478.4,10.69375812]
[1750913052973,0.8046,2478.7,2478.4,10.89535812]
[1750913053584,0.8046,2478.7,2478.0,0.7971]
[1750913053771,1.0062,2478.7,2478.2,10.89570238]
[1750913054556,1.59,2478.6,2478.2,6.8606]
[1750913054962,0.9519,2478.5,2478.2,6.659]
[1750913055579,0.9519,2478.5,2478.0,4.23705708]
[1750913055580,1.20609,2478.5,2478.0,0.2016]
[1750913055747,0.2016,2478.2,2477.9,6.658]
[1750913055952,1.59,2478.1,2477.9,6.658]
[1750913056885,2.3521,2478.1,2477.9,6.658]
[1750913058061,2.3521,2478.1,2477.9,10.69360376]
[1750913058290,1.59,2478.1,2477.9,10.69360376]
[1750913058484,1.59,2478.1,2477.9,6.658]
[1750913061951,1.59,2478.1,2477.8,4.03575924]
[1750913062153,1.59,2478.1,2477.7,10.89552983]
[1750913063394,1.59,2478.1,2477.8,4.03583166]
[1750913063891,1.59,2478.1,2477.7,10.89554415]
[1750913064085,1.59,2478.1,2477.8,4.03573671]
[1750913064291,1.59,2478.1,2477.7,10.89552134]
[1750913064787,1.59,2478.1,2477.8,4.03574257]
[1750913064991,1.59,2478.1,2477.7,10.89551991]
[1750913065156,1.59,2478.1,2477.7,0.2016]
[1750913065354,0.2016,2478.0,2477.7,6.658]
[1750913066490,1.59,2477.9,2477.7,6.658]
[1750913068289,1.59,2477.9,2477.6,4.03602576]
[1750913068470,1.59,2477.9,2477.6,6.658]
[1750913068799,2.5791,2477.8,2476.7,7.4752]
[1750913069002,10.0,2477.6,2476.8,10.70031551]
[1750913069586,10.0,2477.6,2476.8,6.663]
[1750913069792,0.7702,2477.5,2476.8,6.663]
[1750913070275,0.7702,2477.5,2476.7,4.85476105]
[1750913070603,0.7702,2477.4,2476.7,4.03756978]
[1750913070783,0.7702,2477.4,2476.8,4.03736992]
[1750913072290,1.59,2477.3,2476.8,4.03736992]
[1750913073075,1.59,2477.3,2476.7,4.03755699]
[1750913073402,1.59,2477.3,2476.6,10.69869854]
[1750913073907,1.59,2477.3,2476.7,4.03754842]
[1750913074401,1.59,2477.3,2476.8,4.0374677]
[1750913075491,1.59,2477.3,2476.6,6.661]
[1750913075708,1.59,2477.3,2476.9,4.03723279]
[1750913076015,1.59,2477.3,2477.0,4.03711942]
[1750913077818,1.59,2477.3,2476.9,4.03722433]
[1750913078005,1.59,2477.3,2476.8,4.03738487]
[1750913078321,1.59,2477.3,2476.9,4.0373045]
[1750913078683,1.7916,2477.3,2476.9,4.2389045]
[1750913078878,1.7916,2477.3,2476.9,0.2016]
[1750913079325,1.59,2477.2,2477.1,4.83127872]
[1750913079486,1.59,2477.7,2477.4,4.03639443]
[1750913079805,1.82863,2477.7,2477.2,4.03675604]
[1750913080120,1.82863,2477.7,2477.0,10.697096]
[1750913080121,0.7963,2477.6,2477.1,4.03691947]
[1750913080415,1.59,2477.5,2477.0,6.66]
[1750913081291,1.59,2477.5,2476.9,4.03717204]
[1750913081613,1.22043,2477.4,2476.8,4.03745241]
[1750913082919,1.22043,2477.4,2476.7,4.03756373]
[1750913083418,1.22043,2477.4,2476.8,4.03743648]
[1750913084119,0.8299,2477.3,2476.7,4.03759162]
[1750913087114,1.59,2477.2,2476.7,4.03759162]
[1750913089219,0.2016,2477.1,2476.7,4.03759162]
[1750913089828,0.2016,2477.1,2476.6,0.2016]
[1750913090026,0.2016,2477.1,2476.7,4.03760143]
[1750913093120,1.59,2477.0,2476.9,4.03730469]
[1750913093294,10.7823,2477.6,2477.0,4.03701843]
[1750913093295,1.751,2477.4,2477.0,4.03701843]
[1750913093495,1.751,2477.4,2476.9,4.03729999]
[1750913093727,1.751,2477.4,2477.0,4.0371417]
[1750913094120,1.751,2477.4,2477.1,4.03688786]
[1750913094697,1.59,2477.5,2477.2,4.03680361]
[1750913094898,1.751,2477.4,2477.2,4.03680361]
[1750913095524,1.59,2477.5,2476.9,0.8323]
[1750913095715,1.59,2477.5,2477.3,4.03664494]
[1750913095716,1.751,2477.4,2477.3,4.03664494]
[1750913095911,1.59,2477.5,2477.4,4.03648986]
[1750913096312,1.59,2477.5,2477.0,0.7842]
[1750913096618,2.3798,2477.5,2477.4,4.03648986]
[1750913096812,3.341,2477.5,2477.4,4.03648986]
[1750913097327,1.59,2477.5,2477.4,4.03648986]
[1750913099422,3.341,2477.5,2477.4,4.03648986]
[1750913100235,1.59,2477.5,2477.4,4.03648986]
[1750913101313,1.59,2477.6,2477.5,4.03632694]
[1750913103139,1.59,2477.6,2477.5,14.23792694]
[1750913103334,1.751,2478.4,2477.7,4.03598845]
[1750913103520,1.59,2478.3,2478.2,4.23678682]
[1750913103725,1.59,2478.6,2478.5,4.0346984]
[1750913104236,2.02103,2478.6,2478.3,4.03486831]
[1750913104536,0.7692,2478.5,2478.3,4.03486831]
[1750913104726,0.7692,2478.5,2478.2,4.2367155]
[1750913105328,1.75,2478.4,2478.2,4.2367155]
[1750913105542,1.75,2478.4,2477.9,4.03560318]
[1750913105841,0.2016,2478.3,2478.0,4.03551251]
[1750913106334,0.2016,2478.3,2478.1,4.03534966]
[1750913107538,1.9516,2478.3,2478.1,4.03534966]
[1750913107739,1.9516,2478.3,2478.2,4.03518682]
[1750913107942,1.9516,2478.3,2478.0,4.03548953]
[1750913107943,1.9516,2478.3,2478.1,4.0352613]
[1750913108236,0.2016,2478.3,2478.1,4.03533211]
[1750913108661,1.75,2478.4,2477.9,4.03562125]
[1750913108808,0.2016,2478.1,2477.7,11.52157502]
[1750913109139,1.75,2478.4,2477.7,10.69491645]
[1750913109347,0.8276,2477.8,2477.3,0.764]
[1750913109532,0.2016,2477.7,2477.3,4.03658222]
[1750913109842,0.2016,2477.6,2477.4,4.03636869]
[1750913110206,0.2016,2477.6,2477.3,4.03657285]
[1750913111010,0.2016,2477.6,2477.5,4.85712694]
[1750913111251,0.2016,2477.6,2477.4,4.03642115]
[1750913112452,0.8276,2478.1,2477.7,4.03592908]
[1750913112631,0.2016,2477.9,2477.7,4.03592908]
[1750913113967,0.2016,2477.9,2477.8,4.03583824]
[1750913114260,1.9516,2478.1,2477.8,4.03583824]
[1750913114555,0.2016,2478.1,2477.9,4.03557949]
[1750913115456,0.2016,2478.1,2477.8,4.03577547]
[1750913115749,0.2016,2478.1,2477.9,4.03566922]
[1750913116160,0.2016,2478.1,2477.8,4.03577585]
[1750913116450,0.2016,2478.1,2478.0,4.03551251]
[1750913117659,1.75,2478.2,2478.0,4.03551251]
[1750913117840,0.2016,2478.2,2478.1,4.03534966]
[1750913119156,0.2016,2478.2,2478.0,4.03543776]
[1750913119450,0.2016,2478.2,2477.9,4.03557727]
[1750913119855,0.2016,2478.2,2477.8,4.23739454]
[1750913120155,0.2016,2478.1,2477.8,4.03579454]
[1750913121658,1.9556,2478.1,2477.8,4.03579454]
[1750913121954,1.9556,2478.1,2477.6,1.0075]
[1750913122256,0.2016,2477.9,2477.5,10.71022818]
[1750913123160,0.2016,2477.9,2477.4,0.9683]
[1750913123351,0.2016,2477.7,2477.3,6.662]
[1750913123735,0.2016,2477.7,2477.3,10.69856484]
[1750913126175,0.2016,2477.7,2477.2,0.2016]
[1750913126369,2.5482,2477.6,2476.9,0.7722]
[1750913126528,0.2016,2477.3,2476.9,4.80942191]
[1750913126934,0.2016,2477.3,2476.8,14.23902831]
[1750913128065,0.7728,2477.2,2476.5,4.79850944]
[1750913128264,0.2016,2477.1,2476.6,10.90227806]
[1750913128569,0.2016,2477.0,2476.6,4.03767806]
[1750913128770,1.9556,2477.0,2476.5,15.00007823]
[1750913129070,1.9556,2477.0,2476.5,4.23947823]
[1750913129269,0.2016,2477.0,2476.5,4.23947823]
[1750913129471,1.9556,2477.0,2476.6,4.03778154]
[1750913130372,1.9556,2477.0,2476.5,14.23949105]
[1750913131048,1.9556,2477.0,2476.6,4.0377579]
[1750913132851,1.9556,2477.0,2476.5,20.89948269]
[1750913133248,0.7788,2476.9,2476.3,4.03815071]
[1750913133442,0.2016,2476.6,2476.4,4.03811738]
[1750913133641,0.2016,2476.6,2476.3,10.6972021]
[1750913135260,0.2016,2476.6,2476.3,4.0382021]
[1750913135465,0.2016,2476.6,2476.3,10.6982021]
[1750913135683,0.2016,2476.6,2476.2,0.2016]
[1750913135853,1.754,2477.0,2476.1,10.69854933]
[1750913135854,0.9872,2476.5,2476.1,10.69854933]
[1750913136373,2.7412,2476.5,2476.0,0.2016]
[1750913136572,2.7412,2476.5,2475.9,4.81522276]
[1750913136573,2.5396,2476.5,2475.9,10.69892276]
[1750913136774,0.2016,2476.3,2475.9,10.90052276]
[1750913137557,0.2016,2476.3,2475.9,6.8616]
[1750913137785,0.2016,2476.3,2475.9,10.90045528]
[1750913138072,0.2016,2476.3,2475.9,10.90050299]
[1750913138273,1.754,2476.4,2475.9,14.03891946]
[1750913138479,0.2016,2476.2,2475.9,14.03891946]
[1750913138847,0.2016,2476.2,2476.0,4.03874918]
[1750913140981,0.2016,2476.2,2475.9,14.03885438]
[1750913141481,0.2016,2476.2,2475.9,4.03885438]
[1750913142289,0.2016,2476.2,2475.8,10.90162472]
[1750913143386,0.2016,2476.2,2475.8,0.2016]
[1750913143589,0.2016,2475.8,2475.5,0.2199376]
[1750913143753,0.8007,2475.7,2475.5,0.2199376]
[1750913143956,0.2016,2475.6,2475.5,0.2199376]
[1750913145259,0.47733,2475.6,2475.5,0.2199376]
[1750913145760,8.31603949,2475.6,2475.5,0.2199376]
[1750913148092,22.90546427,2475.6,2475.5,0.2199376]
[1750913148277,11.07643,2475.6,2475.5,0.2199376]
[1750913148890,12.83143,2475.6,2475.5,0.2199376]
[1750913150493,11.07643,2475.6,2475.5,0.2199376]
[1750913150695,12.5557,2475.6,2475.5,0.2199376]
[1750913151565,2.5557,2475.6,2475.5,0.2199376]
[1750913151979,2.5517,2475.6,2475.5,0.2199376]
[1750913155295,3.1017,2475.6,2475.5,0.2199376]
[1750913155595,2.5517,2475.6,2475.5,0.2199376]
[1750913155774,4.91460033,2475.6,2475.5,0.2199376]
[1750913155977,9.50402511,2475.6,2475.5,0.2199376]
[1750913157900,5.46460033,2475.6,2475.5,0.2199376]
[1750913158269,21.58060033,2475.6,2475.5,0.2199376]
[1750913161098,26.17002511,2475.6,2475.5,0.2199376]
[1750913164071,13.71360033,2475.6,2475.5,0.2199376]
[1750913164277,13.16360033,2475.6,2475.5,0.2199376]
[1750913164593,21.58060033,2475.6,2475.5,0.2199376]
[1750913170716,27.12321385,2475.6,2475.5,0.2199376]
[1750913174612,27.33376894,2475.6,2475.5,0.2199376]
[1750913175189,4.04066141,2474.9,2474.2,0.32545942]
[1750913175386,0.2016,2474.5,2474.2,0.32545942]